fUST/lending_fUST_20250820
["ID","MTS","AMOUNT","RATE_DAILY","PERIOD"]
[380236084,1755621062269,-500.0,0.00021545,2]
[380236085,1755621062279,-217.10826029,0.00021545,2]
[380236086,1755621062289,-500.0,0.00021545,2]
[380236087,1755621062297,-500.0,0.00021545,2]
[380236088,1755621062307,-500.66103999,0.00021545,2]
[380236089,1755621062316,-500.0,0.00021545,2]
[380236090,1755621062326,-500.0,0.00021545,2]
[380236091,1755621062335,-183.24857298,0.00021545,2]
[380236092,1755621062345,-188.72516645,0.00021545,2]
[380236093,1755621062354,-500.0,0.00021545,2]
[380236094,1755621062363,-7063.17141726,0.00021551,2]
[380236095,1755621062372,-441.33735515,0.00021554,2]
[380236096,1755621062382,-800.0,0.0002159,2]
[380236097,1755621062393,-25376.14,0.000216,2]
[380236098,1755621062495,-800.0,0.0002161,2]
[380236099,1755621062504,-700.80097555,0.00021616,2]
[380236100,1755621062514,-500.0,0.00021616,2]
[380236101,1755621062522,-2000.0,0.00021616,2]
[380236102,1755621062531,-2000.0,0.00021616,2]
[380236103,1755621062540,-811.73146749,0.00021642,2]
[380236104,1755621062549,-480.0,0.00021643,2]
[380236105,1755621062559,-480.0,0.00021643,2]
[380236106,1755621062570,-480.0,0.00021643,2]
[380236107,1755621062579,-2768.82,0.00021643,2]
[380236108,1755621062589,-480.0,0.00021643,2]
[380236109,1755621062598,-151.0,0.00021643,2]
[380236110,1755621062607,-480.0,0.00021643,2]
[380236111,1755621062617,-489.13,0.00021643,2]
[380236112,1755621062626,-151.484349,0.00021643,2]
[380236113,1755621062636,-152.589074,0.00021643,2]
[380236114,1755621062645,-1050.98,0.00021643,2]
[380236115,1755621062655,-480.0,0.00021643,2]
[380236116,1755621062664,-480.0,0.00021643,2]
[380236117,1755621062674,-2558.28,0.00021643,2]
[380236118,1755621062686,-606.85455545,0.00021643,2]
[380236119,1755621062695,-451.95206804,0.00021643,2]
[380236120,1755621062703,-151.0,0.00021643,2]
[380236121,1755621062712,-151.0,0.00021643,2]
[380236122,1755621062721,-151.0,0.00021643,2]
[380236123,1755621062730,-724.98,0.00021643,2]
[380236124,1755621062739,-1116.34,0.00021643,2]
[380236125,1755621062747,-321.74449681,0.00021643,2]
[380236126,1755621062756,-1160.94,0.00021643,2]
[380236127,1755621062766,-480.0,0.00021643,2]
[380236128,1755621062776,-480.0,0.00021643,2]
[380236129,1755621062786,-997.92,0.00021643,2]
[380236130,1755621062795,-843.03,0.00021643,2]
[380236131,1755621062804,-480.0,0.00021643,2]
[380236132,1755621062813,-480.0,0.00021643,2]
[380236133,1755621062823,-1373.92,0.00021643,2]
[380236134,1755621062832,-750.83,0.00021643,2]
[380236135,1755621062841,-480.0,0.00021643,2]
[380236136,1755621062850,-480.0,0.00021643,2]
[380236137,1755621062860,-2019.24,0.00021643,2]
[380236138,1755621062869,-480.0,0.00021643,2]
[380236139,1755621062878,-1260.83,0.00021643,2]
[380236140,1755621062887,-480.0,0.00021643,2]
[380236141,1755621062896,-660.05,0.00021643,2]
[380236142,1755621062904,-907.39,0.00021643,2]
[380236143,1755621062914,-480.0,0.00021643,2]
[380236144,1755621062923,-480.0,0.00021643,2]
[380236145,1755621062935,-480.0,0.00021643,2]
[380236146,1755621062945,-712.05,0.00021643,2]
[380236147,1755621062953,-634.23,0.00021643,2]
[380236148,1755621062961,-584.37,0.00021643,2]
[380236149,1755621062970,-480.0,0.00021643,2]
[380236150,1755621062980,-3402.44031742,0.00021643,2]
[380236151,1755621260514,356.721377,0.00013699,2]
[380236157,1755621517863,5000.0,0.000186,2]
[380236158,1755621534446,5000.0,0.000186,2]
[380236161,1755621645527,1000.0,0.00017975,2]
[380236162,1755621748033,4066.97242812,0.000186,2]
[380236167,1755622050108,-1247.05024495,0.00018899,2]
[380236168,1755622050129,-250.0,0.000189,7]
[380236169,1755622050149,-101.37932353,0.000189,2]
[380236170,1755622063731,196.027264,0.00017966,2]
[380236171,1755622097162,300.0,0.00028,120]
[380236172,1755622158128,-676.50799019,0.00018875,2]
[380236173,1755622158148,-997.64019596,0.00018899,2]
[380236174,1755622158170,-262.59534173,0.00018899,2]
[380236175,1755622161106,-37.40465827,0.00018899,2]
[380236176,1755622161127,-23956.22285064,0.000189,2]
[380236177,1755622161148,-1868.70369201,0.000189,2]
[380236178,1755622161169,-997.64019593,0.00018944,2]
[380236179,1755622161191,-554.59,0.00018968,3]
[380236180,1755622161210,-929.0,0.00018975,2]
[380236181,1755622161230,-6184.13671775,0.00018976,2]
[380236182,1755622173099,-1846.33382198,0.00018933,2]
[380236183,1755622173119,-156.0,0.00018976,2]
[380236184,1755622173141,-300.0,0.00018976,2]
[380236185,1755622173163,-300.0,0.00018976,2]
[380236186,1755622173187,-1200.0,0.00018976,2]
[380236187,1755622173210,-431.26617802,0.00018976,2]
[380236219,1755622231717,-24057.60217417,0.000189,2]
[380236220,1755622231727,-300.0,0.00018975,2]
[380236221,1755622231737,-1200.0,0.00018975,2]
[380236222,1755622231746,-300.0,0.00018975,2]
[380236223,1755622231755,-300.0,0.00018975,2]
[380236224,1755622231765,-68.73382198,0.00018976,2]
[380236225,1755622231774,-188.46337404,0.00018976,2]
[380236226,1755622231783,-500.0,0.00018976,2]
[380236227,1755622231793,-500.0,0.00018976,2]
[380236228,1755622231802,-212.39633134,0.00018976,2]
[380236229,1755622231811,-500.0,0.00018976,2]
[380236230,1755622231821,-290.30429846,0.00018976,2]
[380236232,1755622231837,-3.60936299,0.00018976,2]
[380236233,1755622231847,-500.0,0.00018976,2]
[380236234,1755622231856,-500.0,0.00018976,2]
[380236235,1755622231866,-500.0,0.00018976,2]
[380236236,1755622231875,-500.0,0.00018976,2]
[380236237,1755622231884,-500.0,0.00018976,2]
[380236238,1755622231894,-500.0,0.00018976,2]
[380236239,1755622231903,-429.94321138,0.00018976,2]
[380236240,1755622231912,-500.0,0.00018976,2]
[380236241,1755622231922,-500.0,0.00018976,2]
[380236242,1755622231934,-500.0,0.00018976,2]
[380236243,1755622231948,-500.0,0.00018976,2]
[380236244,1755622231958,-500.0,0.00018976,2]
[380236245,1755622231968,-500.0,0.00018976,2]
[380236246,1755622231978,-363.90445453,0.00018976,2]
[380236247,1755622231988,-174.62207734,0.00018976,2]
[380236248,1755622231998,-651.55582771,0.00018976,2]
[380236249,1755622232010,-500.0,0.00018976,2]
[380236250,1755622232021,-500.0,0.00018976,2]
[380236251,1755622232031,-500.0,0.00018976,2]
[380236252,1755622232040,-500.0,0.00018976,2]
[380236253,1755622232050,-500.0,0.00018976,2]
[380236254,1755622232059,-500.0,0.00018976,2]
[380236255,1755622232069,-500.0,0.00018976,2]
[380236256,1755622232079,-500.0,0.00018976,2]
[380236257,1755622232088,-500.0,0.00018976,2]
[380236258,1755622232098,-500.0,0.00018976,2]
[380236259,1755622232107,-216.70735483,0.00018976,2]
[380236260,1755622232117,-500.0,0.00018976,2]
[380236261,1755622232126,-348.0,0.00018976,2]
[380236262,1755622232136,-407.77023724,0.00018976,2]
[380236263,1755622232145,-500.0,0.00018976,2]
[380236264,1755622232155,-500.0,0.00018976,2]
[380236265,1755622232164,-500.0,0.00018976,2]
[380236266,1755622232174,-500.0,0.00018976,2]
[380236267,1755622232183,-500.0,0.00018976,2]
[380236268,1755622232197,-500.0,0.00018976,2]
[380236269,1755622232206,-500.0,0.00018976,2]
[380236270,1755622232216,-500.0,0.00018976,2]
[380236271,1755622232225,-500.0,0.00018976,2]
[380236272,1755622232235,-500.0,0.00018976,2]
[380236273,1755622232245,-500.0,0.00018976,2]
[380236274,1755622232254,-500.0,0.00018976,2]
[380236275,1755622232264,-500.0,0.00018976,2]
[380236276,1755622232273,-500.0,0.00018976,2]
[380236277,1755622232283,-500.0,0.00018976,2]
[380236278,1755622232292,-500.0,0.00018976,2]
[380236279,1755622232302,-500.0,0.00018976,2]
[380236280,1755622232312,-500.0,0.00018976,2]
[380236281,1755622232321,-500.0,0.00018976,2]
[380236282,1755622232330,-500.0,0.00018976,2]
[380236283,1755622232341,-7696.56130183,0.00018976,2]
[380236454,1755622237885,-4723.45005379,0.00018976,2]
[380236455,1755622237941,-37579.98864438,0.00018976,2]
[380236456,1755622237958,-500.0,0.00018977,2]
[380236457,1755622237970,-9569.09529944,0.00018978,3]
[380236458,1755622237982,-12685.85563623,0.00018978,3]
[380236459,1755622237993,-375.88899365,0.00018978,3]
[380236460,1755622238005,-528.6845513,0.00018978,3]
[380236461,1755622238017,-215.79176414,0.00018978,3]
[380236462,1755622238029,-417.15472785,0.00018978,3]
[380236463,1755622238040,-151017.80240167,0.00018978,2]
[380236464,1755622238051,-997.64019593,0.00018989,2]
[380236465,1755622238061,-348.0,0.00018998,2]
[380236466,1755622238071,-547.41507382,0.00018999,2]
[380236467,1755622238082,-711092.93,0.00019,2]
[380236468,1755622238092,-997.64019593,0.00019033,2]
[380236469,1755622238102,-997.64019593,0.00019078,2]
[380236470,1755622238112,-1000.0,0.00019078,2]
[380236471,1755622238122,-480.0,0.00019178,2]
[380236472,1755622238133,-316.96944826,0.00019178,2]
[380236473,1755622238144,-436.62511952,0.00019178,2]
[380236474,1755622238153,-480.0,0.00019178,2]
[380236475,1755622238162,-480.0,0.00019178,2]
[380236476,1755622238171,-480.0,0.00019178,2]
[380236477,1755622238181,-462.84227019,0.00019178,2]
[380236478,1755622238191,-430.95675496,0.00019178,2]
[380236479,1755622238205,-480.0,0.00019178,2]
[380236480,1755622238214,-480.0,0.00019178,2]
[380236481,1755622238224,-563.95783819,0.00019178,2]
[380236482,1755622238234,-480.0,0.00019178,2]
[380236483,1755622238243,-480.0,0.00019178,2]
[380236484,1755622238252,-480.0,0.00019178,2]
[380236485,1755622238262,-480.0,0.00019178,2]
[380236486,1755622238271,-480.0,0.00019178,2]
[380236487,1755622238281,-480.0,0.00019178,2]
[380236488,1755622238291,-480.0,0.00019178,2]
[380236489,1755622238300,-480.0,0.00019178,2]
[380236490,1755622238309,-480.0,0.00019178,2]
[380236491,1755622238319,-480.0,0.00019178,2]
[380236492,1755622238328,-480.0,0.00019178,2]
[380236493,1755622238338,-480.0,0.00019178,2]
[380236494,1755622238347,-480.0,0.00019178,2]
[380236495,1755622238356,-480.0,0.00019178,2]
[380236496,1755622238366,-480.0,0.00019178,2]
[380236497,1755622238375,-480.0,0.00019178,2]
[380236498,1755622238383,-481.60156924,0.00019178,2]
[380236499,1755622238393,-227.16128546,0.00019178,2]
[380236500,1755622238402,-460.98261965,0.00019178,2]
[380236501,1755622238411,-460.0,0.00019178,2]
[380236502,1755622238420,-480.0,0.00019178,2]
[380236503,1755622238429,-480.0,0.00019178,2]
[380236504,1755622238439,-6998.28,0.00019178,2]
[380236505,1755622238453,-151.49952695,0.00019178,2]
[380236506,1755622238461,-480.0,0.00019178,2]
[380236507,1755622238471,-165.29182355,0.00019178,2]
[380236508,1755622238481,-480.0,0.00019178,2]
[380236509,1755622238490,-448.11202833,0.00019178,2]
[380236510,1755622238499,-480.0,0.00019178,2]
[380236511,1755622238509,-480.0,0.00019178,2]
[380236512,1755622238518,-480.0,0.00019178,2]
[380236513,1755622238527,-460.79770301,0.00019178,2]
[380236514,1755622238537,-480.0,0.00019178,2]
[380236515,1755622238545,-966.56,0.00019178,2]
[380236516,1755622238554,-480.0,0.00019178,2]
[380236517,1755622238563,-480.0,0.00019178,2]
[380236518,1755622238572,-480.0,0.00019178,2]
[380236519,1755622238736,-480.0,0.00019178,2]
[380236520,1755622238747,-480.0,0.00019178,2]
[380236521,1755622238757,-480.0,0.00019178,2]
[380236522,1755622238766,-480.0,0.00019178,2]
[380236523,1755622238775,-461.98463166,0.00019178,2]
[380236524,1755622238785,-480.0,0.00019178,2]
[380236525,1755622238796,-480.0,0.00019178,2]
[380236526,1755622238807,-480.0,0.00019178,2]
[380236527,1755622238817,-480.0,0.00019178,2]
[380236528,1755622238827,-480.0,0.00019178,2]
[380236529,1755622238837,-480.0,0.00019178,2]
[380236530,1755622238848,-480.0,0.00019178,2]
[380236531,1755622238859,-480.0,0.00019178,2]
[380236532,1755622238869,-480.0,0.00019178,2]
[380236533,1755622238878,-480.0,0.00019178,2]
[380236534,1755622238888,-480.0,0.00019178,2]
[380236535,1755622238897,-480.0,0.00019178,2]
[380236536,1755622238907,-480.0,0.00019178,2]
[380236537,1755622238916,-480.0,0.00019178,2]
[380236538,1755622238928,-441.14279068,0.00019178,2]
[380236539,1755622238938,-480.0,0.00019178,2]
[380236540,1755622238952,-405.0774063,0.00019178,2]
[380236541,1755622238962,-480.0,0.00019178,2]
[380236542,1755622238973,-480.0,0.00019178,2]
[380236543,1755622238983,-442.15785343,0.00019178,2]
[380236544,1755622238992,-480.0,0.00019178,2]
[380236545,1755622239003,-480.0,0.00019178,2]
[380236546,1755622239013,-480.0,0.00019178,2]
[380236547,1755622239024,-480.0,0.00019178,2]
[380236548,1755622239035,-480.0,0.00019178,2]
[380236549,1755622239045,-480.0,0.00019178,2]
[380236550,1755622239056,-480.0,0.00019178,2]
[380236551,1755622239067,-480.0,0.00019178,2]
[380236552,1755622239078,-538.80630557,0.00019178,2]
[380236553,1755622239089,-480.0,0.00019178,2]
[380236554,1755622239100,-480.0,0.00019178,2]
[380236555,1755622239110,-480.0,0.00019178,2]
[380236556,1755622239121,-480.0,0.00019178,2]
[380236557,1755622239130,-480.0,0.00019178,2]
[380236558,1755622239140,-480.0,0.00019178,2]
[380236559,1755622239150,-480.0,0.00019178,2]
[380236560,1755622239160,-460.0,0.00019178,2]
[380236561,1755622239169,-416.73654711,0.00019178,2]
[380236562,1755622239179,-463.98850853,0.00019178,2]
[380236564,1755622239189,-480.0,0.00019178,2]
[380236565,1755622239204,-665.71,0.00019178,2]
[380236567,1755622239213,-480.0,0.00019178,2]
[380236569,1755622239223,-185.30960158,0.00019178,2]
[380236571,1755622239233,-480.0,0.00019178,2]
[380236572,1755622239242,-480.0,0.00019178,2]
[380236573,1755622239252,-480.0,0.00019178,2]
[380236574,1755622239261,-480.0,0.00019178,2]
[380236576,1755622239271,-482.20957872,0.00019178,2]
[380236578,1755622239280,-445.46148603,0.00019178,2]
[380236580,1755622239290,-480.0,0.00019178,2]
[380236583,1755622239299,-480.0,0.00019178,2]
[380236585,1755622239309,-4077.21,0.00019178,2]
[380236587,1755622239318,-480.0,0.00019178,2]
[380236589,1755622239327,-1099.69,0.00019178,2]
[380236591,1755622239336,-480.8074567,0.00019178,2]
[380236593,1755622239345,-480.0,0.00019178,2]
[380236595,1755622239355,-480.0,0.00019178,2]
[380236597,1755622239365,-480.0,0.00019178,2]
[380236599,1755622239374,-484.81769494,0.00019178,2]
[380236600,1755622239384,-480.0,0.00019178,2]
[380236602,1755622239393,-579.53817664,0.00019178,2]
[380236605,1755622239403,-480.0,0.00019178,2]
[380236607,1755622239412,-480.0,0.00019178,2]
[380236611,1755622239422,-480.0,0.00019178,2]
[380236612,1755622239431,-463.85154358,0.00019178,2]
[380236613,1755622239440,-480.0,0.00019178,2]
[380236614,1755622239453,-461.46200814,0.00019178,2]
[380236615,1755622239462,-1018.18922878,0.00019178,2]
[380236617,1755622239470,-480.0,0.00019178,2]
[380236618,1755622239479,-481.1975748,0.00019178,2]
[380236619,1755622239488,-480.0,0.00019178,2]
[380236620,1755622239498,-480.0,0.00019178,2]
[380236621,1755622239507,-530.28,0.00019178,2]
[380236622,1755622239517,-480.0,0.00019178,2]
[380236623,1755622239527,-480.0,0.00019178,2]
[380236624,1755622239537,-480.0,0.00019178,2]
[380236625,1755622239546,-480.0,0.00019178,2]
[380236626,1755622239555,-480.0,0.00019178,2]
[380236627,1755622239564,-480.0,0.00019178,2]
[380236628,1755622239574,-480.0,0.00019178,2]
[380236629,1755622239583,-460.0,0.00019178,2]
[380236630,1755622239592,-480.0,0.00019178,2]
[380236631,1755622239601,-480.0,0.00019178,2]
[380236632,1755622239611,-480.0,0.00019178,2]
[380236633,1755622239621,-480.0,0.00019178,2]
[380236634,1755622239630,-480.0,0.00019178,2]
[380236635,1755622239640,-480.0,0.00019178,2]
[380236636,1755622239649,-480.0,0.00019178,2]
[380236637,1755622239659,-480.0,0.00019178,2]
[380236638,1755622239669,-480.0,0.00019178,2]
[380236639,1755622239678,-403.93004099,0.00019178,2]
[380236640,1755622239688,-480.0,0.00019178,2]
[380236641,1755622239701,-191.1582669,0.00019178,2]
[380236642,1755622239711,-480.0,0.00019178,2]
[380236643,1755622239720,-482.37758965,0.00019178,2]
[380236644,1755622239730,-480.0,0.00019178,2]
[380236645,1755622239740,-480.0,0.00019178,2]
[380236646,1755622239750,-480.0,0.00019178,2]
[380236647,1755622239762,-480.0,0.00019178,2]
[380236648,1755622239772,-480.0,0.00019178,2]
[380236649,1755622239783,-480.0,0.00019178,2]
[380236650,1755622239793,-480.0,0.00019178,2]
[380236651,1755622239802,-480.0,0.00019178,2]
[380236652,1755622239812,-480.0,0.00019178,2]
[380236655,1755622239822,-480.0,0.00019178,2]
[380236657,1755622239832,-440.54791943,0.00019178,2]
[380236658,1755622239842,-480.0,0.00019178,2]
[380236659,1755622239852,-480.0,0.00019178,2]
[380236660,1755622239862,-480.0,0.00019178,2]
[380236661,1755622239873,-480.0,0.00019178,2]
[380236662,1755622239884,-480.0,0.00019178,2]
[380236663,1755622239894,-480.0,0.00019178,2]
[380236664,1755622239904,-480.0,0.00019178,2]
[380236665,1755622239913,-460.0,0.00019178,2]
[380236666,1755622239924,-989.73,0.00019178,2]
[380236667,1755622239934,-460.0,0.00019178,2]
[380236668,1755622239945,-480.0,0.00019178,2]
[380236669,1755622239959,-480.0,0.00019178,2]
[380236670,1755622239970,-480.0,0.00019178,2]
[380236671,1755622239980,-480.0,0.00019178,2]
[380236672,1755622239990,-461.13533127,0.00019178,2]
[380236673,1755622239999,-480.0,0.00019178,2]
[380236674,1755622240009,-480.0,0.00019178,2]
[380236675,1755622240019,-480.0,0.00019178,2]
[380236676,1755622240029,-480.0,0.00019178,2]
[380236677,1755622240039,-480.0,0.00019178,2]
[380236678,1755622240048,-481.23536927,0.00019178,2]
[380236679,1755622240058,-480.0,0.00019178,2]
[380236680,1755622240067,-448.81742787,0.00019178,2]
[380236681,1755622240077,-440.0,0.00019178,2]
[380236682,1755622240086,-480.0,0.00019178,2]
[380236683,1755622240096,-480.0,0.00019178,2]
[380236684,1755622240105,-480.0,0.00019178,2]
[380236685,1755622240115,-480.0,0.00019178,2]
[380236686,1755622240124,-460.0,0.00019178,2]
[380236687,1755622240133,-461.79154528,0.00019178,2]
[380236688,1755622240142,-480.0,0.00019178,2]
[380236689,1755622240151,-372.76310938,0.00019178,2]
[380236690,1755622240161,-480.0,0.00019178,2]
[380236691,1755622240171,-480.0,0.00019178,2]
[380236692,1755622240181,-461.4081386,0.00019178,2]
[380236693,1755622240190,-480.0,0.00019178,2]
[380236694,1755622240204,-820.05,0.00019178,2]
[380236695,1755622240213,-665.88,0.00019178,2]
[380236696,1755622240223,-480.0,0.00019178,2]
[380236697,1755622240232,-448.74976641,0.00019178,2]
[380236698,1755622240241,-480.0,0.00019178,2]
[380236699,1755622240250,-480.0,0.00019178,2]
[380236700,1755622240259,-1385.41,0.00019178,2]
[380236701,1755622240268,-461.63460395,0.00019178,2]
[380236702,1755622240278,-480.0,0.00019178,2]
[380236703,1755622240287,-480.0,0.00019178,2]
[380236704,1755622240296,-237.90426437,0.00019178,2]
[380236705,1755622240305,-480.0,0.00019178,2]
[380236706,1755622240314,-480.0,0.00019178,2]
[380236707,1755622240323,-480.0,0.00019178,2]
[380236708,1755622240332,-480.0,0.00019178,2]
[380236709,1755622240342,-480.0,0.00019178,2]
[380236710,1755622240351,-240.60915166,0.00019178,2]
[380236711,1755622240360,-685.48,0.00019178,2]
[380236712,1755622240369,-369.44116776,0.00019178,2]
[380236713,1755622240379,-480.0,0.00019178,2]
[380236714,1755622240389,-1090.94,0.00019178,2]
[380236715,1755622240398,-480.0,0.00019178,2]
[380236716,1755622240408,-480.0,0.00019178,2]
[380236717,1755622240417,-480.0,0.00019178,2]
[380236718,1755622240426,-480.0,0.00019178,2]
[380236719,1755622240435,-480.0,0.00019178,2]
[380236721,1755622240444,-480.0,0.00019178,2]
[380236723,1755622240458,-480.0,0.00019178,2]
[380236725,1755622240467,-480.0,0.00019178,2]
[380236726,1755622240476,-201.76112064,0.00019178,2]
[380236727,1755622240486,-480.0,0.00019178,2]
[380236729,1755622240495,-362.21769733,0.00019178,2]
[380236730,1755622240504,-480.0,0.00019178,2]
[380236731,1755622240513,-480.0,0.00019178,2]
[380236732,1755622240522,-480.0,0.00019178,2]
[380236733,1755622240532,-480.0,0.00019178,2]
[380236734,1755622240541,-899.76,0.00019178,2]
[380236735,1755622240550,-480.0,0.00019178,2]
[380236736,1755622240559,-480.0,0.00019178,2]
[380236737,1755622240568,-480.0,0.00019178,2]
[380236738,1755622240577,-480.0,0.00019178,2]
[380236739,1755622240586,-460.51946107,0.00019178,2]
[380236740,1755622240595,-1040.67,0.00019178,2]
[380236741,1755622240604,-480.0,0.00019178,2]
[380236742,1755622240613,-480.0,0.00019178,2]
[380236743,1755622240623,-480.0,0.00019178,2]
[380236744,1755622240631,-480.0,0.00019178,2]
[380236745,1755622240641,-480.0,0.00019178,2]
[380236746,1755622240650,-480.0,0.00019178,2]
[380236747,1755622240659,-496.36,0.00019178,2]
[380236748,1755622240669,-480.0,0.00019178,2]
[380236749,1755622240678,-479.19582504,0.00019178,2]
[380236750,1755622240687,-480.0,0.00019178,2]
[380236751,1755622240699,-480.0,0.00019178,2]
[380236752,1755622240711,-480.0,0.00019178,2]
[380236753,1755622240719,-480.0,0.00019178,2]
[380236754,1755622240729,-480.0,0.00019178,2]
[380236755,1755622240738,-480.0,0.00019178,2]
[380236756,1755622240746,-480.0,0.00019178,2]
[380236757,1755622240756,-480.0,0.00019178,2]
[380236758,1755622240765,-748.34,0.00019178,2]
[380236759,1755622240774,-480.0,0.00019178,2]
[380236760,1755622240783,-480.0,0.00019178,2]
[380236761,1755622240793,-480.0,0.00019178,2]
[380236762,1755622240803,-480.0,0.00019178,2]
[380236763,1755622240812,-480.0,0.00019178,2]
[380236764,1755622240821,-480.0,0.00019178,2]
[380236765,1755622240830,-341.05533903,0.00019178,2]
[380236766,1755622240840,-480.0,0.00019178,2]
[380236767,1755622240849,-481.25037141,0.00019178,2]
[380236768,1755622240858,-420.0,0.00019178,2]
[380236769,1755622240866,-480.0,0.00019178,2]
[380236770,1755622240875,-480.0,0.00019178,2]
[380236771,1755622240884,-480.0,0.00019178,2]
[380236772,1755622240894,-480.0,0.00019178,2]
[380236773,1755622240904,-480.0,0.00019178,2]
[380236774,1755622240915,-480.0,0.00019178,2]
[380236775,1755622240925,-480.0,0.00019178,2]
[380236776,1755622240934,-480.0,0.00019178,2]
[380236777,1755622240943,-615.91,0.00019178,2]
[380236778,1755622240960,-480.0,0.00019178,2]
[380236779,1755622240971,-480.0,0.00019178,2]
[380236780,1755622240980,-480.0,0.00019178,2]
[380236781,1755622240989,-973.55,0.00019178,2]
[380236782,1755622240998,-480.0,0.00019178,2]
[380236783,1755622241007,-480.0,0.00019178,2]
[380236784,1755622241016,-480.0,0.00019178,2]
[380236785,1755622241025,-480.0,0.00019178,2]
[380236786,1755622241034,-480.0,0.00019178,2]
[380236787,1755622241044,-480.0,0.00019178,2]
[380236788,1755622241053,-480.0,0.00019178,2]
[380236789,1755622241062,-480.0,0.00019178,2]
[380236790,1755622241072,-480.0,0.00019178,2]
[380236791,1755622241081,-480.0,0.00019178,2]
[380236792,1755622241090,-480.0,0.00019178,2]
[380236793,1755622241099,-480.0,0.00019178,2]
[380236794,1755622241109,-480.0,0.00019178,2]
[380236795,1755622241118,-480.0,0.00019178,2]
[380236796,1755622241128,-480.0,0.00019178,2]
[380236797,1755622241136,-480.0,0.00019178,2]
[380236798,1755622241144,-480.0,0.00019178,2]
[380236799,1755622241153,-480.0,0.00019178,2]
[380236800,1755622241162,-480.0,0.00019178,2]
[380236801,1755622241172,-480.0,0.00019178,2]
[380236802,1755622241181,-480.0,0.00019178,2]
[380236803,1755622241190,-3502.95,0.00019178,2]
[380236804,1755622241201,-2118.85,0.00019178,2]
[380236805,1755622241210,-480.0,0.00019178,2]
[380236806,1755622241219,-480.0,0.00019178,2]
[380236807,1755622241228,-480.0,0.00019178,2]
[380236808,1755622241238,-480.0,0.00019178,2]
[380236809,1755622241247,-480.0,0.00019178,2]
[380236810,1755622241255,-480.0,0.00019178,2]
[380236811,1755622241265,-480.0,0.00019178,2]
[380236812,1755622241274,-460.0,0.00019178,2]
[380236813,1755622241283,-442.23049986,0.00019178,2]
[380236814,1755622241291,-480.0,0.00019178,2]
[380236815,1755622241301,-480.0,0.00019178,2]
[380236816,1755622241313,-480.0,0.00019178,2]
[380236817,1755622241322,-480.0,0.00019178,2]
[380236818,1755622241331,-500.0,0.00019178,2]
[380236819,1755622241340,-1200.84,0.00019178,2]
[380236820,1755622241349,-480.0,0.00019178,2]
[380236821,1755622241359,-520.0,0.00019178,2]
[380236822,1755622241368,-577.5,0.00019178,2]
[380236823,1755622241377,-480.0,0.00019178,2]
[380236824,1755622241386,-480.0,0.00019178,2]
[380236825,1755622241396,-480.9948733,0.00019178,2]
[380236826,1755622241405,-480.0,0.00019178,2]
[380236827,1755622241414,-675.63,0.00019178,2]
[380236828,1755622241423,-535.82,0.00019178,2]